bitfinex/quotes_SOLUSD_20241028
["timestamp","ask_amount","ask_price","bid_price","bid_amount"]
[1730153588947,44.04785578,178.55,178.49,50.42035578]
[1730153589146,44.04785578,178.55,178.49,44.14785578]
[1730153589673,44.04785578,178.56,178.51,0.1]
[1730153589877,44.04785578,178.59,178.53,44.04785578]
[1730153590166,44.04785578,178.6,178.54,44.04785578]
[1730153590372,44.04785578,178.59,178.53,44.14785578]
[1730153590667,44.04785578,178.59,178.54,0.1]
[1730153591058,44.04785578,178.6,178.54,44.04785578]
[1730153591354,44.04785578,178.59,178.54,0.1]
[1730153591952,44.04785578,178.6,178.54,0.1]
[1730153592153,44.04785578,178.6,178.54,44.14785578]
[1730153592358,44.04785578,178.61,178.54,0.2]
[1730153592573,44.04785578,178.66,178.6,44.04785578]
[1730153592759,44.04785578,178.67,178.6,0.1]
[1730153593290,44.04785578,178.66,178.6,44.14785578]
[1730153593579,21.9663,178.71,178.58,44.14785578]
[1730153593580,44.04785578,178.64,178.58,44.14785578]
[1730153593751,44.04785578,178.64,178.58,44.04785578]
[1730153593950,44.04785578,178.63,178.57,44.14785578]
[1730153594176,44.04785578,178.64,178.58,44.14785578]
[1730153594363,5.5959,178.7,178.59,44.04785578]
[1730153594364,44.04785578,178.65,178.59,44.04785578]
[1730153594764,44.04785578,178.67,178.61,44.04785578]
[1730153595278,44.04785578,178.65,178.6,0.1]
[1730153595464,44.04785578,178.64,178.59,0.1]
[1730153595784,44.04785578,178.63,178.58,44.14785578]
[1730153595962,44.04785578,178.63,178.57,44.04785578]
[1730153596465,44.04785578,178.65,178.58,44.14785578]
[1730153596774,44.04785578,178.65,178.59,44.04785578]
[1730153596979,44.04785578,178.62,178.56,50.70975578]
[1730153597163,44.04785578,178.61,178.56,0.1]
[1730153597362,44.04785578,178.62,178.56,44.04785578]
[1730153597869,19.5858,178.7,178.55,44.04785578]
[1730153597870,44.04785578,178.61,178.55,44.04785578]
[1730153598872,44.04785578,178.6,178.54,0.1]
[1730153599183,44.04785578,178.6,178.54,44.24785578]
[1730153599465,44.04785578,178.6,178.54,44.04785578]
[1730153599677,44.04785578,178.6,178.54,44.14785578]
[1730153600059,44.04785578,178.6,178.54,0.1]
[1730153600258,44.04785578,178.63,178.56,44.04785578]
[1730153600588,44.04785578,178.64,178.58,44.04785578]
[1730153601062,29.373084,178.69,178.6,44.04785578]
[1730153601063,44.04785578,178.66,178.6,44.04785578]
[1730153601263,44.04785578,178.64,178.58,44.24785578]
[1730153601462,5.5962,178.69,178.59,44.14785578]
[1730153601463,44.04785578,178.65,178.59,44.14785578]
[1730153602053,44.04785578,178.67,178.61,44.04785578]
[1730153602368,44.04785578,178.66,178.6,44.14785578]
[1730153602574,27.10147513,178.66,178.6,27.20147513]
[1730153603076,27.10147513,178.66,178.6,27.10147513]
[1730153603258,27.10147513,178.65,178.6,0.1]
[1730153603775,27.10147513,178.66,178.6,27.20147513]
[1730153604164,27.10147513,178.66,178.6,27.10147513]
[1730153604464,27.10147513,178.65,178.59,27.10147513]
[1730153604772,27.10147513,178.64,178.59,27.10147513]
[1730153604955,27.10147513,178.64,178.58,27.30147513]
[1730153605155,27.10147513,178.61,178.56,0.1]
[1730153605372,6.6233,178.75,178.64,0.2]
[1730153605859,6.6233,178.75,178.64,0.1]
[1730153606057,6.6233,178.75,178.65,27.10147513]
[1730153606378,27.10147513,178.71,178.65,27.10147513]
[1730153606672,27.10147513,178.68,178.62,27.20147513]
[1730153607252,27.10147513,178.69,178.63,27.10147513]
[1730153607661,27.10147513,178.68,178.62,27.30147513]
[1730153607971,27.10147513,178.72,178.66,27.20147513]
[1730153608373,27.10147513,178.74,178.68,27.10147513]
[1730153608556,27.10147513,178.74,178.66,0.2]
[1730153608557,27.10147513,178.72,178.66,27.30147513]
[1730153608964,27.10147513,178.72,178.66,27.20147513]
[1730153609162,12.2177,178.75,178.66,27.20147513]
[1730153609163,27.10147513,178.73,178.67,27.10147513]
[1730153609379,27.10147513,178.73,178.66,0.1]
[1730153609380,27.10147513,178.74,178.68,27.10147513]
[1730153609756,27.10147513,178.75,178.69,27.10147513]
[1730153610463,27.10147513,178.76,178.7,27.10147513]
[1730153610879,27.10147513,178.8,178.74,27.10147513]
[1730153611200,27.10147513,178.83,178.78,27.10147513]
[1730153611359,0.5991325,178.85,178.8,27.10147513]
[1730153611689,27.10147513,178.84,178.78,0.1]
[1730153611985,27.10147513,178.83,178.77,27.10147513]
[1730153612158,6.1904325,178.85,178.75,20.1]
[1730153612159,27.10147513,178.81,178.75,27.10147513]
[1730153612362,14.14115043,178.81,178.75,27.10147513]
[1730153612580,27.10147513,178.8,178.75,0.1]
[1730153613080,27.10147513,178.8,178.74,27.20147513]
[1730153613272,27.10147513,178.8,178.74,27.30147513]
[1730153613471,27.10147513,178.8,178.75,0.1]
[1730153613683,0.5991325,178.85,178.75,27.30147513]
[1730153613684,27.10147513,178.81,178.75,27.30147513]
[1730153613870,27.10147513,178.8,178.75,27.30147513]
[1730153614070,27.10147513,178.8,178.75,27.10147513]
[1730153614285,27.10147513,178.8,178.74,27.10147513]
[1730153614459,0.5991325,178.85,178.73,0.1]
[1730153614460,27.10147513,178.78,178.73,0.1]
[1730153614866,27.10147513,178.77,178.72,27.10147513]
[1730153615194,27.10147513,178.75,178.69,27.20147513]
[1730153615374,27.10147513,178.75,178.7,27.20147513]
[1730153615577,27.10147513,178.75,178.7,0.1]
[1730153615786,27.10147513,178.77,178.71,27.10147513]
[1730153615964,27.10147513,178.76,178.7,27.20147513]
[1730153616673,27.10147513,178.77,178.71,27.10147513]
[1730153616877,27.10147513,178.76,178.7,27.20147513]
[1730153617080,5.5922,178.82,178.71,27.10147513]
[1730153617276,27.10147513,178.76,178.7,27.20147513]
[1730153617478,27.10147513,178.77,178.72,27.10147513]
[1730153617786,27.10147513,178.76,178.71,27.20147513]
[1730153617968,27.10147513,178.76,178.7,0.1]
[1730153617969,27.10147513,178.79,178.73,27.30147513]
[1730153618168,27.10147513,178.79,178.74,0.1]
[1730153618391,27.10147513,178.79,178.74,27.10147513]
[1730153618576,27.10147513,178.79,178.74,27.20147513]
[1730153618988,27.10147513,178.77,178.72,27.20147513]
[1730153619192,27.10147513,178.77,178.71,27.20147513]
[1730153619380,32.69347513,178.83,178.69,23.776884]
[1730153619381,27.10147513,178.74,178.69,23.776884]
[1730153619575,27.10147513,178.74,178.68,27.10147513]
[1730153619768,27.10147513,178.73,178.68,0.1]
[1730153619988,27.10147513,178.73,178.67,27.20147513]
[1730153620296,27.10147513,178.74,178.68,27.10147513]
[1730153620793,27.10147513,178.75,178.69,27.10147513]
[1730153622690,27.10147513,178.74,178.68,27.30147513]
[1730153623776,27.10147513,178.73,178.68,27.20147513]
[1730153623977,27.10147513,178.73,178.68,27.30147513]
[1730153624374,27.10147513,178.74,178.68,27.30147513]
[1730153624571,27.10147513,178.75,178.69,27.10147513]
[1730153624873,27.10147513,178.74,178.68,27.20147513]
[1730153625067,27.10147513,178.74,178.68,27.30147513]
[1730153625683,27.10147513,178.75,178.69,27.10147513]
[1730153626677,27.10147513,178.74,178.68,27.20147513]
[1730153626876,27.10147513,178.74,178.68,27.30147513]
[1730153627697,27.10147513,178.74,178.69,27.10147513]
[1730153628193,27.10147513,178.74,178.68,27.30147513]
[1730153628397,27.10147513,178.73,178.68,23.976884]
[1730153628698,27.10147513,178.74,178.68,50.97835913]
[1730153628884,27.10147513,178.7,178.65,0.1]
[1730153629197,27.10147513,178.74,178.68,27.10147513]
[1730153629380,27.10147513,178.73,178.68,27.10147513]
[1730153629585,5.5934,178.78,178.64,0.1]
[1730153629895,27.10147513,178.68,178.63,27.10147513]
[1730153630100,27.10147513,178.68,178.63,0.1]
[1730153630900,27.10147513,178.68,178.63,27.20147513]
[1730153631403,27.10147513,178.78,178.7,0.1]
[1730153631694,33.43197513,178.79,178.74,27.10147513]
[1730153631901,33.43197513,178.79,178.73,27.10147513]
[1730153632086,27.10147513,178.77,178.72,27.20147513]
[1730153632400,27.10147513,178.77,178.71,27.10147513]
[1730153632608,27.10147513,178.77,178.71,27.20147513]
[1730153632895,27.10147513,178.77,178.71,27.10147513]
[1730153633103,27.10147513,178.76,178.71,27.10147513]
[1730153633297,27.10147513,178.75,178.69,27.10147513]
[1730153633911,27.10147513,178.78,178.72,27.10147513]
[1730153634079,42.81337513,178.8,178.74,27.10147513]
[1730153634286,42.81337513,178.8,178.75,27.10147513]
[1730153634498,27.10147513,178.79,178.73,27.20147513]
[1730153635008,27.10147513,178.79,178.73,27.10147513]
[1730153635181,27.10147513,178.79,178.73,27.20147513]
[1730153636401,27.10147513,178.8,178.75,27.10147513]
[1730153636608,27.10147513,178.82,178.76,27.10147513]
[1730153636902,27.10147513,178.81,178.75,27.10147513]
[1730153639907,27.10147513,178.82,178.76,27.10147513]
[1730153640080,27.10147513,178.81,178.76,27.10147513]
[1730153640283,27.10147513,178.8,178.75,27.10147513]
[1730153640580,27.10147513,178.79,178.73,27.10147513]
[1730153640781,27.10147513,178.8,178.74,27.10147513]
[1730153641883,27.10147513,178.77,178.72,27.10147513]
[1730153642484,27.10147513,178.78,178.72,27.20147513]
[1730153643087,27.10147513,178.8,178.74,27.10147513]
[1730153643289,27.10147513,178.8,178.73,27.10147513]
[1730153643491,5.5924,178.82,178.73,27.10147513]
[1730153643492,27.10147513,178.79,178.73,27.10147513]
[1730153643690,27.10147513,178.78,178.72,50.87835913]
[1730153643895,27.10147513,178.78,178.72,27.10147513]
[1730153644404,5.5924,178.82,178.65,27.10147513]
[1730153644405,27.10147513,178.73,178.66,27.10147513]
[1730153644588,27.10147513,178.71,178.65,27.30147513]
[1730153645099,27.10147513,178.73,178.67,27.10147513]
[1730153645416,27.10147513,178.73,178.67,27.20147513]
[1730153646505,27.10147513,178.74,178.68,27.20147513]
[1730153646806,27.10147513,178.78,178.71,0.1]
[1730153647012,27.10147513,178.77,178.71,27.20147513]
[1730153647185,27.10147513,178.77,178.71,27.10147513]
[1730153647590,27.10147513,178.77,178.71,0.1]
[1730153647913,27.10147513,178.77,178.71,47.20147513]
[1730153648487,27.10147513,178.77,178.71,27.20147513]
[1730153648905,27.10147513,178.77,178.71,27.10147513]
[1730153649212,27.10147513,178.76,178.71,20.0]
[1730153649408,27.10147513,178.74,178.68,27.10147513]
[1730153649606,27.10147513,178.73,178.68,23.776884]
[1730153649808,27.10147513,178.74,178.68,50.87835913]
[1730153650693,27.10147513,178.75,178.68,50.87835913]
[1730153650894,27.10147513,178.76,178.69,27.10147513]
[1730153651105,5.5922,178.82,178.74,27.10147513]
[1730153651298,6.2693,178.83,178.78,27.10147513]
[1730153651515,6.2693,178.83,178.8,27.10147513]
[1730153651806,33.37077513,178.83,178.78,27.10147513]
[1730153652005,6.2693,178.83,178.78,27.10147513]
[1730153652189,33.37077513,178.83,178.78,27.10147513]
[1730153652599,6.2693,178.83,178.78,27.10147513]
[1730153653201,43.62900763,178.85,178.79,27.10147513]
[1730153653406,27.10147513,178.84,178.78,27.10147513]
[1730153653714,0.5991325,178.85,178.82,27.10147513]
[1730153653916,0.5991325,178.85,178.83,27.10147513]
[1730153654909,0.5991325,178.85,178.81,0.1]
[1730153654910,0.5991325,178.85,178.84,27.10147513]
[1730153655607,0.5991325,178.85,178.82,27.10147513]
[1730153656132,0.5991325,178.85,178.81,27.10147513]
[1730153656320,0.5991325,178.85,178.8,0.1]
[1730153656321,0.5991325,178.85,178.82,27.10147513]
[1730153658391,0.5991325,178.85,178.84,27.10147513]
[1730153658792,0.5991325,178.85,178.83,27.10147513]
[1730153659996,0.5991325,178.85,178.84,27.10147513]
[1730153660820,0.5991325,178.85,178.83,27.10147513]
[1730153661508,0.5991325,178.85,178.84,70.87835913]
[1730153663007,0.5991325,178.85,178.84,20.0]
[1730153663201,0.5991325,178.85,178.83,20.0]
[1730153663518,0.5991325,178.85,178.84,20.0]
[1730153664308,0.5991325,178.85,178.83,20.0]
[1730153664513,0.5991325,178.85,178.84,20.0]
[1730153666511,0.5991325,178.85,178.84,60.6695054]
[1730153666909,0.5991325,178.85,178.84,61.78725952]
[1730153667118,0.5991325,178.85,178.84,60.6695054]
[1730153667908,30.8588214,179.01,178.84,60.6695054]
[1730153667909,21.4996,179.0,178.86,20.2]
[1730153668116,16.8926214,178.94,178.89,20.0]
[1730153669128,16.8926214,178.94,178.89,20.1]
[1730153669306,16.8926214,178.95,178.89,36.9926214]
[1730153669920,16.8926214,178.94,178.9,23.776884]
[1730153670127,0.5991325,179.03,178.9,23.776884]
[1730153670128,0.5991325,179.03,178.92,40.7695054]
[1730153670331,0.5991325,179.03,178.92,23.776884]
[1730153670332,16.8926214,178.96,178.92,23.776884]
[1730153670636,16.8926214,178.95,178.92,23.776884]
[1730153670932,16.8926214,178.95,178.91,23.776884]
[1730153671627,0.5991325,179.03,178.93,23.976884]
[1730153671832,16.8926214,178.98,178.95,23.776884]
[1730153672521,16.8926214,178.99,178.95,23.776884]
[1730153673325,16.8926214,178.97,178.95,23.776884]
[1730153673734,0.5991325,179.03,178.95,23.776884]
[1730153674029,16.8926214,178.98,178.95,23.776884]
[1730153674330,16.8926214,178.97,178.95,23.776884]
[1730153674812,16.8926214,178.97,178.94,20.0]
[1730153675018,16.8926214,178.97,178.93,43.776884]
[1730153675213,16.8926214,178.95,178.93,43.776884]
[1730153675422,16.8926214,178.97,178.93,43.776884]
[1730153675731,0.5991325,179.03,178.89,16.8926214]
[1730153675732,16.8926214,178.95,178.89,16.8926214]
[1730153675943,16.8926214,178.95,178.9,16.8926214]
[1730153676307,16.8926214,178.95,178.89,16.9926214]
[1730153677017,16.8926214,178.95,178.9,16.8926214]
[1730153677531,16.8926214,178.95,178.91,20.0]
[1730153677829,16.8926214,178.95,178.9,40.6695054]
[1730153678135,16.8926214,178.95,178.91,20.0]
[1730153679125,16.8926214,178.96,178.91,20.0]
[1730153679330,16.8926214,178.98,178.92,16.8926214]
[1730153679526,16.8926214,178.97,178.91,36.8926214]
[1730153679921,16.8926214,178.97,178.92,16.8926214]
[1730153680120,22.4802214,178.97,178.92,16.8926214]
[1730153680335,16.8926214,178.98,178.93,16.8926214]
[1730153680627,16.8926214,178.98,178.92,16.8926214]
[1730153680831,16.8926214,178.93,178.85,0.1]
[1730153681132,39.5130214,178.95,178.9,16.8926214]
[1730153682328,45.1012214,178.95,178.9,16.8926214]
[1730153682531,28.2086,178.95,178.9,16.8926214]
[1730153682726,28.2086,178.95,178.91,16.8926214]
[1730153683122,5.5882,178.95,178.91,16.8926214]
[1730153684112,5.5882,178.95,178.86,0.1]
[1730153684113,5.5882,178.95,178.9,16.8926214]
[1730153685426,16.8926214,178.95,178.9,16.8926214]
[1730153685833,16.8926214,178.96,178.9,16.8926214]
[1730153686533,5.5881,178.95,178.9,16.8926214]
[1730153687245,22.4807214,178.95,178.89,16.8926214]
[1730153687450,16.8926214,178.94,178.89,20.0]
[1730153687639,36.7044,178.99,178.9,16.8926214]
[1730153687640,5.5872,178.98,178.9,16.8926214]
[1730153687943,16.8926214,178.96,178.9,16.8926214]
[1730153688145,16.8926214,178.97,178.91,16.8926214]
[1730153688740,22.4804214,178.97,178.92,16.8926214]
[1730153689242,5.5878,178.97,178.92,16.8926214]
[1730153689431,5.5878,178.97,178.93,16.8926214]
[1730153689824,5.5878,178.97,178.92,16.8926214]
[1730153690547,22.4804214,178.97,178.92,16.8926214]
[1730153691541,22.4804214,178.97,178.81,6.5506]
[1730153691542,16.8926214,178.93,178.81,6.5506]
[1730153691844,16.8926214,178.92,178.86,16.8926214]
[1730153692030,16.8926214,178.93,178.87,16.8926214]
[1730153692231,22.4804214,178.97,178.91,16.8926214]
[1730153692430,5.5875,178.97,178.88,0.2]
[1730153692628,22.4801214,178.97,178.91,16.8926214]
[1730153692829,22.4806214,178.96,178.88,0.1]
[1730153693020,22.4806214,178.96,178.91,23.776884]
[1730153693445,22.4806214,178.96,178.91,40.6695054]
[1730153693627,16.8926214,178.96,178.91,40.6695054]
[1730153694343,16.8926214,178.97,178.91,40.6695054]
[1730153694726,22.4799214,178.98,178.92,16.8926214]
[1730153695327,22.4799214,178.98,178.93,1.68773152]
[1730153695537,16.8926214,178.97,178.91,40.6695054]
[1730153695933,16.8926214,178.96,178.91,16.8926214]
[1730153696448,16.8926214,178.94,178.89,20.0]
[1730153696634,16.8926214,178.94,178.88,16.8926214]
[1730153698048,5.5884,178.94,178.89,16.8926214]
[1730153698921,16.8926214,178.97,178.91,16.8926214]
[1730153699126,39.6293214,178.99,178.93,16.8926214]
[1730153699425,16.8926214,178.98,178.92,16.8926214]
[1730153700021,22.4798214,178.98,178.92,16.8926214]
[1730153700548,45.2163214,178.99,178.93,16.8926214]
[1730153700742,16.8926214,178.98,178.92,16.8926214]
[1730153700943,16.8926214,178.98,178.94,1.39846593]
[1730153701333,39.6293214,178.99,178.94,18.29108733]
[1730153701535,22.2678325,179.03,178.97,16.8926214]
[1730153701832,16.8926214,179.01,178.95,16.8926214]
[1730153702036,16.8926214,179.01,178.98,1.39822556]
[1730153702240,16.8926214,179.01,178.99,1.39831764]
[1730153702439,16.8926214,179.01,179.0,1.39830057]
[1730153702647,22.4789214,179.01,179.0,1.39827785]
[1730153703229,16.8926214,179.01,179.0,1.39827785]
[1730153705761,16.8926214,179.01,178.96,16.8926214]
[1730153705960,22.2678325,179.03,178.97,1.39823464]
[1730153706137,22.2678325,179.03,178.99,16.8926214]
[1730153706344,16.8926214,179.02,178.97,16.8926214]
[1730153706541,16.8926214,179.02,178.98,1.3981489]
[1730153706741,16.8926214,179.02,178.97,16.8926214]
[1730153707056,16.8926214,179.02,178.98,1.39816394]
[1730153707257,16.8926214,179.02,178.97,16.8926214]
[1730153707463,16.8926214,179.02,178.98,1.39817495]
[1730153707661,16.8926214,179.02,178.97,16.8926214]
[1730153707961,39.1604539,179.03,178.97,16.8926214]
[1730153708156,44.7461539,179.03,178.97,16.8926214]
[1730153708328,16.8926214,179.01,178.96,16.8926214]
[1730153708530,16.8926214,178.99,178.97,1.39820398]
[1730153708733,16.8926214,178.98,178.95,3.84937597]
[1730153708959,16.8926214,178.98,178.96,1.39826124]
[1730153709268,27.8535325,179.03,178.94,16.8926214]
[1730153709434,16.8926214,179.02,178.97,16.8926214]
[1730153709633,39.1604539,179.03,178.97,16.8926214]
[1730153709832,16.8926214,179.02,178.97,16.8926214]
[1730153710053,16.8926214,179.01,178.95,16.8926214]
[1730153710258,16.8926214,179.01,178.96,1.39821316]
[1730153711153,27.8535325,179.03,178.98,3.63533097]
[1730153711457,27.8535325,179.03,178.96,3.84847981]
[1730153711458,16.8926214,178.99,178.94,3.84847981]
[1730153711753,16.8926214,179.01,178.95,24.37648653]
[1730153712059,16.8926214,179.0,178.96,3.63538532]
[1730153712360,16.8926214,179.0,178.97,3.63538532]
[1730153712661,16.8926214,179.0,178.98,3.63538532]
[1730153712829,5.5864,179.01,178.99,3.63538532]
[1730153713040,16.8926214,179.0,178.94,3.85032668]
[1730153713249,5.5864,179.01,178.95,7.48586981]
[1730153713556,5.5864,179.01,178.96,3.63554313]
[1730153713857,5.5864,179.01,178.97,3.63554313]
[1730153714060,16.8926214,178.98,178.93,3.85032668]
[1730153714233,16.8926214,178.96,178.94,3.63579095]
[1730153714440,10.80685733,178.96,178.95,3.63579095]
[1730153714659,10.80685733,178.96,178.9,10.80685733]
[1730153714863,10.80685733,178.96,178.91,23.84805963]
[1730153715039,10.80685733,178.97,178.92,34.58374133]
[1730153715358,10.80685733,178.99,178.93,30.80685733]
[1730153715540,10.80685733,178.99,178.94,6.08504976]
[1730153715761,10.80685733,178.99,178.95,3.63571871]
[1730153716058,10.80685733,179.0,178.96,3.63571871]
[1730153716257,10.80685733,179.02,178.97,2.23736536]
[1730153716462,16.87727125,179.0,178.97,3.63571871]
[1730153716648,16.87727125,179.0,178.98,2.23736536]
[1730153716963,16.87727125,179.0,178.99,1.3983173]
[1730153717867,16.87727125,179.0,178.94,9.41702587]
[1730153718075,16.97727125,179.01,178.92,5.23363644]
[1730153718076,16.87727125,178.95,178.92,5.23363644]
[1730153718368,16.87727125,178.94,178.93,2.23771684]
[1730153718675,16.87727125,178.94,178.93,6.4238213]
[1730153718833,16.87727125,178.94,178.93,2.23783786]
[1730153719040,16.87727125,178.95,178.93,6.42479452]
[1730153719256,16.87727125,178.95,178.9,16.87727125]
[1730153719456,16.87727125,178.96,178.91,6.28536792]
[1730153719636,16.87727125,178.97,178.92,6.28536792]
[1730153719835,16.87727125,178.96,178.93,2.23773152]
[1730153720036,16.87727125,178.96,178.9,16.87727125]
[1730153720256,5.5871,178.99,178.91,4.04689704]
[1730153720257,16.87727125,178.95,178.91,4.04689704]
[1730153720462,16.87727125,178.96,178.92,6.28441761]
[1730153720648,16.87727125,178.95,178.89,40.65415525]
[1730153720845,16.87727125,178.94,178.89,23.776884]
[1730153721066,16.87727125,178.95,178.89,40.65415525]
[1730153721664,16.87727125,178.91,178.84,20.0]
[1730153721846,16.87727125,178.9,178.87,4.71218441]
[1730153722151,16.87727125,178.89,178.88,6.2864477]
[1730153722345,16.87727125,178.91,178.88,6.2864477]
[1730153722544,16.87727125,178.91,178.89,4.0485163]
[1730153722763,16.87727125,178.91,178.89,2.2379314]
[1730153723069,16.87727125,178.91,178.9,2.2379314]
[1730153723546,16.87727125,178.91,178.88,4.04770985]
[1730153723750,16.87727125,178.91,178.89,2.23806561]
[1730153724069,16.87727125,178.92,178.88,4.04770985]
[1730153724248,16.87727125,178.92,178.89,2.23802566]
[1730153724450,16.87727125,178.9,178.88,6.28573418]
[1730153724761,5.5887,178.94,178.85,16.87727125]
[1730153724762,16.87727125,178.91,178.85,16.87727125]
[1730153725070,16.87727125,178.9,178.86,6.28572802]
[1730153725245,5.5887,178.94,178.87,6.28572802]
[1730153725438,0.1,178.95,178.88,2.23801817]
[1730153725765,0.1,178.95,178.76,0.1]
[1730153725766,16.87727125,178.89,178.85,6.28572802]
[1730153726063,16.87727125,178.87,178.86,6.23714046]
[1730153726648,6.3668,178.94,178.86,6.23714046]
[1730153726649,16.87727125,178.88,178.86,6.23714046]
[1730153726850,16.87727125,178.87,178.86,6.23714046]
[1730153727261,32.84967125,178.87,178.86,6.23714046]
[1730153727476,45.10037125,178.87,178.84,2.23816393]
[1730153727680,45.10037125,178.87,178.83,6.23747689]
[1730153727681,16.87727125,178.85,178.83,6.23747689]
[1730153727979,22.6325,178.87,178.84,16.87727125]
[1730153728175,16.87727125,178.91,178.85,16.87727125]
[1730153728479,22.6325,178.92,178.87,16.87727125]
[1730153729672,22.6325,178.92,178.88,16.87727125]
[1730153730875,39.50977125,178.92,178.86,16.87727125]
[1730153731074,39.50977125,178.92,178.87,1.39880634]
[1730153731589,22.6325,178.92,178.87,18.27607759]
[1730153731767,22.6325,178.92,178.88,1.39880634]
[1730153732081,22.6325,178.92,178.88,18.27607759]
[1730153732376,22.6325,178.92,178.89,1.39880634]
[1730153732587,39.81187125,178.97,178.91,16.87727125]
[1730153732777,22.9346,178.97,178.93,16.87727125]
[1730153732982,22.9346,178.97,178.94,16.87727125]
[1730153733157,16.87727125,179.0,178.94,16.87727125]
[1730153733357,22.46387125,179.0,178.94,16.87727125]
[1730153733764,22.9346,179.01,178.94,16.87727125]
[1730153733765,16.87727125,178.99,178.94,16.87727125]
[1730153733961,45.39807125,179.01,178.95,16.87727125]
[1730153734177,16.87727125,179.0,178.94,16.87727125]
[1730153734565,16.87727125,179.0,178.95,16.87727125]
[1730153735075,45.39807125,179.01,178.95,16.87727125]
[1730153735289,28.5208,179.01,178.96,16.87727125]
[1730153735760,22.9346,179.01,178.97,16.87727125]
[1730153735963,22.9346,179.01,178.92,16.87727125]
[1730153735964,6.5859,179.01,178.98,16.87727125]
[1730153736174,6.5859,179.01,178.97,16.87727125]
[1730153736384,17.47640375,179.03,178.97,16.87727125]
[1730153736584,16.87727125,179.02,178.93,20.0]
[1730153736760,16.87727125,179.02,178.9,0.2]
[1730153736761,17.47640375,179.03,178.97,16.87727125]
[1730153737661,17.47640375,179.03,178.98,16.87727125]
[1730153737869,0.5991325,179.03,178.98,16.87727125]
[1730153738172,17.47640375,179.03,178.97,16.87727125]
[1730153739690,16.87727125,179.02,178.98,1.39819434]
[1730153739999,16.87727125,179.02,178.97,16.87727125]
[1730153740164,17.47640375,179.03,178.98,18.27546461]
[1730153740365,17.47640375,179.03,178.98,16.87727125]
[1730153740789,17.47640375,179.03,178.99,1.39818125]
[1730153740989,17.47640375,179.03,178.98,16.87727125]
[1730153741173,17.47640375,179.03,178.99,1.39818647]
[1730153741491,17.47640375,179.03,178.97,16.87727125]
[1730153741685,16.87727125,179.02,178.98,1.39818337]
[1730153741884,16.87727125,179.02,178.99,1.39818337]
[1730153742093,17.47640375,179.03,178.97,16.87727125]
[1730153742283,16.87727125,179.02,178.98,1.39817056]
[1730153742588,16.87727125,179.0,178.99,1.39817056]
[1730153742894,16.87727125,179.0,178.96,2.2371499]
[1730153743186,16.87727125,178.98,178.97,1.39833529]
[1730153743371,16.87727125,178.99,178.97,1.39833529]
[1730153743572,16.87727125,178.99,178.94,20.0]
[1730153743772,16.87727125,178.99,178.95,3.63551612]
[1730153743980,16.87727125,178.99,178.96,1.39827543]
[1730153744293,16.87727125,178.99,178.94,36.87727125]
[1730153744294,16.87727125,179.0,178.97,1.39827543]
[1730153744600,16.87727125,179.01,178.98,1.39825095]
[1730153744893,16.87727125,179.01,178.96,2.23731062]
[1730153745082,16.87727125,179.01,178.97,3.63532484]
[1730153745284,16.87727125,179.01,178.98,1.39821442]
[1730153745483,17.47640375,179.03,178.99,1.39821442]
[1730153745677,17.47640375,179.03,179.0,1.39817488]
[1730153745876,16.87727125,179.02,178.97,16.87727125]
[1730153746083,16.87727125,179.01,178.98,1.39813573]
[1730153746398,16.87727125,179.01,178.99,1.39813573]
[1730153746600,16.87727125,179.0,178.97,2.23704102]
[1730153746891,16.87727125,179.0,178.98,1.398207]
[1730153747088,16.87727125,179.0,178.95,20.0]
[1730153747289,16.87727125,178.97,178.96,3.63555452]
[1730153747501,16.87727125,178.99,178.96,1.3982902]
[1730153747788,6.1848325,179.03,178.97,1.3982902]
[1730153747789,16.87727125,179.0,178.97,1.3982902]
[1730153747989,16.87727125,179.0,178.96,2.23726596]
[1730153748197,16.87727125,179.0,178.97,1.39828524]
[1730153748372,16.87727125,179.0,178.96,2.23725638]
[1730153748571,16.87727125,179.0,178.97,1.39828426]
[1730153748814,6.1848325,179.03,178.97,1.39828426]
[1730153748815,1.0,179.01,178.97,16.87727125]
[1730153748975,1.0,179.01,178.98,1.39820147]
[1730153749173,17.87727125,179.01,178.99,1.39820147]
[1730153749382,17.87727125,179.01,178.96,16.87727125]
[1730153749584,17.87727125,179.01,178.97,3.63523849]
[1730153749785,1.0,179.01,178.98,1.39816866]
[1730153749983,1.0,179.01,178.99,1.39816866]
[1730153750302,17.87727125,179.01,178.97,2.2370063]
[1730153750499,17.87727125,179.01,178.98,1.39815179]
[1730153750678,17.87727125,179.01,178.99,1.39815179]
[1730153750998,1.0,179.01,178.96,40.65415525]
[1730153751177,1.0,179.01,178.97,3.63515389]
[1730153751379,1.0,179.01,178.98,3.63515389]
[1730153751707,1.0,179.01,178.99,1.39813611]
[1730153751897,1.0,179.01,178.97,2.23701004]
[1730153752196,1.0,179.01,178.98,3.63513487]
[1730153752399,1.0,179.01,178.99,1.39812483]